fUST/lending_fUST_20250220
["ID","MTS","AMOUNT","RATE_DAILY","PERIOD"]
[353751344,1740010243386,-500.0,0.0001378,2]
[353751346,1740010243396,-500.0,0.0001378,2]
[353751349,1740010243408,-500.0,0.0001378,2]
[353751350,1740010243419,-500.0,0.0001378,2]
[353751351,1740010243430,-500.0,0.0001378,2]
[353751353,1740010243442,-671.53,0.0001378,2]
[353751354,1740010243453,-500.0,0.0001378,2]
[353751355,1740010243464,-344.52,0.0001378,2]
[353751356,1740010243475,-500.0,0.0001378,2]
[353751357,1740010243486,-583.34,0.0001378,2]
[353751358,1740010243498,-521.80072586,0.0001378,2]
[353751359,1740010243511,-500.0,0.0001378,2]
[353751360,1740010243524,-500.0,0.0001378,2]
[353751361,1740010243538,-500.0,0.0001378,2]
[353751362,1740010243550,-969.4,0.0001378,2]
[353751363,1740010243563,-500.0,0.0001378,2]
[353751364,1740010243575,-500.0,0.0001378,2]
[353751365,1740010243588,-318.73732323,0.0001378,2]
[353751366,1740010243600,-500.0,0.0001378,2]
[353751367,1740010243612,-1702.23,0.0001378,2]
[353751368,1740010243625,-500.0,0.0001378,2]
[353751369,1740010243637,-533.67601559,0.0001378,2]
[353751370,1740010243649,-500.0,0.0001378,2]
[353751371,1740010243660,-500.0,0.0001378,2]
[353751372,1740010243670,-500.0,0.0001378,2]
[353751373,1740010243680,-622.44305527,0.0001378,2]
[353751376,1740010243848,-500.0,0.0001378,2]
[353751377,1740010243870,-500.0,0.0001378,2]
[353751378,1740010243881,-500.0,0.0001378,2]
[353751379,1740010243890,-500.0,0.0001378,2]
[353751380,1740010243900,-500.0,0.0001378,2]
[353751381,1740010243910,-500.0,0.0001378,2]
[353751382,1740010243919,-1017.11,0.0001378,2]
[353751383,1740010243929,-500.0,0.0001378,2]
[353751384,1740010243939,-1044.34,0.0001378,2]
[353751385,1740010243950,-500.0,0.0001378,2]
[353751386,1740010243961,-538.86,0.0001378,2]
[353751387,1740010243971,-500.0,0.0001378,2]
[353751388,1740010243981,-500.0,0.0001378,2]
[353751389,1740010243991,-500.0,0.0001378,2]
[353751390,1740010244001,-500.0,0.0001378,2]
[353751391,1740010244011,-500.0,0.0001378,2]
[353751392,1740010244021,-443.88568256,0.0001378,2]
[353751393,1740010244031,-513.35,0.0001378,2]
[353751394,1740010244040,-500.0,0.0001378,2]
[353751395,1740010244050,-500.0,0.0001378,2]
[353751396,1740010244060,-500.0,0.0001378,2]
[353751397,1740010244069,-500.0,0.0001378,2]
[353751398,1740010244078,-500.0,0.0001378,2]
[353751399,1740010244087,-531.17,0.0001378,2]
[353751401,1740010244097,-500.0,0.0001378,2]
[353751402,1740010244107,-500.0,0.0001378,2]
[353751403,1740010244117,-551.5,0.0001378,2]
[353751404,1740010244127,-500.0,0.0001378,2]
[353751405,1740010244136,-500.0,0.0001378,2]
[353751406,1740010244145,-500.0,0.0001378,2]
[353751407,1740010244154,-500.0,0.0001378,2]
[353751408,1740010244164,-500.0,0.0001378,2]
[353751409,1740010244174,-1250.49,0.0001378,2]
[353751410,1740010244183,-500.0,0.0001378,2]
[353751411,1740010244193,-523.13048672,0.0001378,2]
[353751412,1740010244203,-500.0,0.0001378,2]
[353751413,1740010244212,-4536.63,0.0001378,2]
[353751414,1740010244223,-500.0,0.0001378,2]
[353751415,1740010244232,-500.0,0.0001378,2]
[353751416,1740010244243,-500.0,0.0001378,2]
[353751417,1740010244252,-500.0,0.0001378,2]
[353751418,1740010244264,-500.0,0.0001378,2]
[353751419,1740010244275,-500.0,0.0001378,2]
[353751420,1740010244286,-180.23978548,0.0001378,2]
[353751421,1740010244295,-500.0,0.0001378,2]
[353751422,1740010244306,-1184.6,0.0001378,2]
[353751423,1740010244315,-1054.85,0.0001378,2]
[353751424,1740010244325,-500.0,0.0001378,2]
[353751425,1740010244335,-181.86900916,0.0001378,2]
[353751426,1740010244344,-500.0,0.0001378,2]
[353751427,1740010244354,-500.0,0.0001378,2]
[353751428,1740010244364,-698.44,0.0001378,2]
[353751429,1740010244374,-234.42680456,0.0001378,2]
[353751430,1740010244383,-692.95,0.0001378,2]
[353751431,1740010244394,-500.0,0.0001378,2]
[353751432,1740010244404,-500.0,0.0001378,2]
[353751433,1740010244413,-500.0,0.0001378,2]
[353751434,1740010244423,-291.85,0.0001378,2]
[353751435,1740010244432,-545.33,0.0001378,2]
[353751436,1740010244442,-239.66405551,0.00013852,2]
[353751437,1740010244452,-502.3460501,0.00013863,2]
[353751438,1740010244462,-500.0,0.00013863,2]
[353751439,1740010244472,-184.88128693,0.00013863,2]
[353751440,1740010244481,-500.0,0.00013863,2]
[353751441,1740010244491,-500.0,0.00013863,2]
[353751442,1740010244500,-500.0,0.00013863,2]
[353751443,1740010244511,-500.0,0.00013863,2]
[353751444,1740010244522,-500.0,0.00013863,2]
[353751445,1740010244535,-500.0,0.00013863,2]
[353751446,1740010244545,-500.0,0.00013863,2]
[353751447,1740010244554,-500.0,0.00013863,2]
[353751448,1740010244565,-500.0,0.00013863,2]
[353751449,1740010244574,-500.0,0.00013863,2]
[353751450,1740010244585,-500.0,0.00013863,2]
[353751451,1740010244595,-500.0,0.00013863,2]
[353751452,1740010244605,-500.0,0.00013863,2]
[353751453,1740010244614,-500.0,0.00013863,2]
[353751454,1740010244625,-500.0,0.00013863,2]
[353751455,1740010244635,-500.0,0.00013863,2]
[353751456,1740010244646,-500.0,0.00013863,2]
[353751457,1740010244659,-500.0,0.00013863,2]
[353751458,1740010244671,-500.0,0.00013863,2]
[353751459,1740010244683,-500.0,0.00013863,2]
[353751460,1740010244701,-500.0,0.00013863,2]
[353751461,1740010244712,-500.0,0.00013863,2]
[353751462,1740010244722,-500.0,0.00013863,2]
[353751463,1740010244732,-500.0,0.00013863,2]
[353751464,1740010244741,-500.0,0.00013863,2]
[353751465,1740010244751,-500.0,0.00013863,2]
[353751466,1740010244763,-561.93215732,0.00013863,2]
[353751467,1740010244773,-500.0,0.00013863,2]
[353751468,1740010244782,-500.0,0.00013863,2]
[353751469,1740010244792,-500.0,0.00013863,2]
[353751470,1740010244802,-500.0,0.00013863,5]
[353751471,1740010244812,-500.0,0.00013863,2]
[353751472,1740010244822,-335.07875271,0.00013863,2]
[353751473,1740010244832,-500.0,0.00013863,2]
[353751474,1740010244842,-789.43,0.00013863,2]
[353751475,1740010244851,-500.0,0.00013863,2]
[353751476,1740010244861,-500.0,0.00013863,2]
[353751477,1740010244872,-500.0,0.00013863,2]
[353751478,1740010244882,-185.01949623,0.00013863,2]
[353751479,1740010244892,-500.0,0.00013863,2]
[353751480,1740010244901,-12866.34,0.00013863,2]
[353751481,1740010244911,-4092.36,0.00013863,2]
[353751482,1740010244920,-500.0,0.00013863,2]
[353751483,1740010244930,-266.75724183,0.00013863,2]
[353751484,1740010244939,-500.0,0.00013863,2]
[353751485,1740010244949,-500.0,0.00013863,2]
[353751486,1740010244959,-500.0,0.00013863,2]
[353751487,1740010244968,-500.0,0.00013863,2]
[353751488,1740010244978,-500.0,0.00013863,2]
[353751489,1740010244987,-500.0,0.00013863,2]
[353751490,1740010244997,-671.53,0.00013863,2]
[353751491,1740010245009,-500.0,0.00013863,2]
[353751492,1740010245018,-500.0,0.00013863,2]
[353751493,1740010245028,-583.34,0.00013863,2]
[353751494,1740010245038,-395.70765333,0.00013863,2]
[353751495,1740010245048,-500.0,0.00013863,2]
[353751496,1740010245058,-500.0,0.00013863,2]
[353751497,1740010245068,-969.4,0.00013863,2]
[353751498,1740010245077,-500.0,0.00013863,2]
[353751499,1740010245087,-500.0,0.00013863,2]
[353751500,1740010245097,-1702.23,0.00013863,2]
[353751501,1740010245108,-500.0,0.00013863,2]
[353751502,1740010245117,-500.0,0.00013863,2]
[353751503,1740010245127,-500.0,0.00013863,2]
[353751504,1740010245136,-500.0,0.00013863,2]
[353751505,1740010245146,-191.37906272,0.00013863,2]
[353751506,1740010245155,-284.32746956,0.00013863,2]
[353751507,1740010245165,-500.0,0.00013863,2]
[353751508,1740010245175,-500.0,0.00013863,2]
[353751509,1740010245185,-500.0,0.00013863,2]
[353751510,1740010245194,-1017.11,0.00013863,2]
[353751511,1740010245204,-500.0,0.00013863,2]
[353751512,1740010245214,-1044.34,0.00013863,2]
[353751513,1740010245223,-500.0,0.00013863,2]
[353751514,1740010245233,-538.86,0.00013863,2]
[353751515,1740010245243,-500.0,0.00013863,2]
[353751516,1740010245255,-500.0,0.00013863,2]
[353751517,1740010245265,-500.0,0.00013863,2]
[353751518,1740010245276,-500.0,0.00013863,2]
[353751519,1740010245286,-513.35,0.00013863,2]
[353751520,1740010245295,-500.0,0.00013863,2]
[353751521,1740010245305,-500.0,0.00013863,2]
[353751522,1740010245315,-1.95877247,0.00013863,2]
[353751523,1740010245444,-498.04122753,0.00013863,2]
[353751524,1740010245454,-500.0,0.00013863,2]
[353751525,1740010245464,-308.71144025,0.00013863,2]
[353751526,1740010245476,-222.45855975,0.00013863,2]
[353751527,1740010245485,-172.54144025,0.00013863,2]
[353751528,1740010245497,-327.45855975,0.00013863,2]
[353751529,1740010245507,-500.0,0.00013863,2]
[353751530,1740010245518,-551.5,0.00013863,2]
[353751531,1740010245531,-500.0,0.00013863,2]
[353751532,1740010245541,-500.0,0.00013863,2]
[353751533,1740010245551,-500.0,0.00013863,2]
[353751534,1740010245560,-500.0,0.00013863,2]
[353751535,1740010245571,-500.0,0.00013863,2]
[353751536,1740010245581,-1250.49,0.00013863,2]
[353751537,1740010245591,-500.0,0.00013863,2]
[353751538,1740010245601,-4536.63,0.00013863,2]
[353751539,1740010245612,-500.0,0.00013863,2]
[353751540,1740010245622,-303.19282925,0.00013863,2]
[353751541,1740010245634,-196.80717075,0.00013863,2]
[353751542,1740010245644,-500.0,0.00013863,2]
[353751543,1740010245653,-500.0,0.00013863,2]
[353751544,1740010245663,-500.0,0.00013863,2]
[353751545,1740010245672,-500.0,0.00013863,2]
[353751546,1740010245682,-1184.6,0.00013863,2]
[353751547,1740010245691,-1054.85,0.00013863,2]
[353751548,1740010245701,-500.0,0.00013863,2]
[353751549,1740010245710,-391.20026402,0.00013863,2]
[353751550,1740010245719,-500.0,0.00013863,2]
[353751551,1740010245729,-698.44,0.00013863,2]
[353751552,1740010245738,-500.0,0.00013863,2]
[353751553,1740010245748,-692.95,0.00013863,2]
[353751554,1740010245758,-500.0,0.00013863,2]
[353751555,1740010245768,-545.33,0.00013863,2]
[353751556,1740010245778,-500.0,0.00013873,2]
[353751557,1740010245787,-500.0,0.00013873,2]
[353751558,1740010245797,-500.0,0.00013873,2]
[353751559,1740010245807,-710.1913072,0.000139,2]
[353751560,1740010245817,-710.1913072,0.000139,2]
[353751561,1740010245827,-400.69720659,0.00013927,2]
[353751562,1740010245836,-500.0,0.00013945,2]
[353751563,1740010245846,-500.0,0.00013945,2]
[353751564,1740010245856,-500.0,0.00013945,2]
[353751565,1740010245866,-500.0,0.00013945,2]
[353751566,1740010245876,-500.0,0.00013945,2]
[353751567,1740010245887,-502.75966118,0.00013945,2]
[353751568,1740010245896,-511.23110889,0.00013945,2]
[353751569,1740010245906,-500.0,0.00013945,2]
[353751570,1740010245917,-500.0,0.00013945,2]
[353751571,1740010245927,-500.0,0.00013945,2]
[353751572,1740010245937,-500.0,0.00013945,2]
[353751573,1740010245947,-500.0,0.00013945,2]
[353751574,1740010245957,-500.0,0.00013945,2]
[353751575,1740010245967,-500.0,0.00013945,2]
[353751576,1740010245978,-500.0,0.00013945,2]
[353751577,1740010245988,-500.0,0.00013945,2]
[353751578,1740010245998,-500.0,0.00013945,2]
[353751579,1740010246009,-500.0,0.00013945,2]
[353751580,1740010246018,-500.0,0.00013945,2]
[353751581,1740010246028,-500.0,0.00013945,2]
[353751582,1740010246038,-500.0,0.00013945,2]
[353751583,1740010246048,-511.07091318,0.00013945,2]
[353751584,1740010246058,-500.0,0.00013945,2]
[353751585,1740010246068,-500.0,0.00013945,2]
[353751586,1740010246077,-518.02104124,0.00013945,2]
[353751587,1740010246087,-500.0,0.00013945,2]
[353751588,1740010246098,-789.43,0.00013945,2]
[353751589,1740010246108,-500.0,0.00013945,2]
[353751590,1740010246118,-500.0,0.00013945,2]
[353751592,1740010246128,-626.36383376,0.00013945,2]
[353751594,1740010246138,-1848.3974419,0.00013945,2]
[353751597,1740010246156,-6419.9056697,0.00013945,2]
[353751629,1740010246458,-273.40897977,0.00013945,2]
[353751631,1740010246472,-4324.62790863,0.00013945,2]
[353751634,1740010246482,-4092.36,0.00013945,2]
[353751636,1740010246494,-500.0,0.00013945,2]
[353751638,1740010246512,-500.0,0.00013945,2]
[353751640,1740010246531,-500.0,0.00013945,2]
[353751642,1740010246541,-500.0,0.00013945,2]
[353751645,1740010246552,-500.0,0.00013945,2]
[353751647,1740010246562,-500.0,0.00013945,2]
[353751649,1740010246574,-500.0,0.00013945,2]
[353751651,1740010246584,-671.53,0.00013945,2]
[353751652,1740010246594,-500.0,0.00013945,2]
[353751653,1740010246605,-583.34,0.00013945,2]
[353751654,1740010246615,-500.0,0.00013945,2]
[353751655,1740010246625,-500.0,0.00013945,2]
[353751657,1740010246635,-969.4,0.00013945,2]
[353751659,1740010246645,-500.0,0.00013945,2]
[353751661,1740010246655,-1702.23,0.00013945,2]
[353751663,1740010246665,-547.17,0.00013945,2]
[353751665,1740010246675,-500.0,0.00013945,2]
[353751667,1740010246684,-1017.11,0.00013945,2]
[353751669,1740010246694,-1044.34,0.00013945,2]
[353751671,1740010246704,-500.0,0.00013945,2]
[353751673,1740010246714,-538.86,0.00013945,2]
[353751675,1740010246725,-500.0,0.00013945,2]
[353751678,1740010246736,-500.0,0.00013945,2]
[353751679,1740010246748,-500.0,0.00013945,2]
[353751681,1740010246759,-500.0,0.00013945,2]
[353751683,1740010246769,-513.35,0.00013945,2]
[353751685,1740010246778,-500.0,0.00013945,2]
[353751688,1740010246789,-500.0,0.00013945,2]
[353751690,1740010246800,-500.0,0.00013945,2]
[353751692,1740010246810,-531.17,0.00013945,2]
[353751694,1740010246820,-500.0,0.00013945,2]
[353751696,1740010246830,-551.5,0.00013945,2]
[353751698,1740010246840,-633.8,0.00013945,2]
[353751700,1740010246850,-500.0,0.00013945,2]
[353751702,1740010246861,-500.0,0.00013945,2]
[353751705,1740010246871,-500.0,0.00013945,2]
[353751707,1740010246881,-1250.49,0.00013945,2]
[353751709,1740010246891,-500.0,0.00013945,2]
[353751711,1740010246901,-4536.63,0.00013945,2]
[353751726,1740010247039,-500.0,0.00013945,2]
[353751728,1740010247052,-500.0,0.00013945,2]
[353751730,1740010247062,-282.31763371,0.00013945,2]
[353751732,1740010247073,-500.0,0.00013945,2]
[353751734,1740010247083,-1184.6,0.00013945,2]
[353751736,1740010247093,-1054.85,0.00013945,2]
[353751739,1740010247103,-500.0,0.00013945,2]
[353751741,1740010247112,-500.0,0.00013945,2]
[353751743,1740010247126,-698.44,0.00013945,2]
[353751745,1740010247136,-692.95,0.00013945,2]
[353751747,1740010247146,-500.0,0.00013945,2]
[353751749,1740010247156,-545.33,0.00013945,2]
[353751751,1740010247166,-1460.899831,0.00013998,2]
[353751753,1740010247177,-1460.899831,0.00013998,2]
[353751755,1740010247187,-1316.83465032,0.00014,2]
[353751757,1740010247197,-1006.50607972,0.00014,2]
[353751759,1740010247207,-7972.31087635,0.00014,2]
[353751761,1740010247221,-18136.68912365,0.00014,2]
[353751763,1740010247231,-500.0,0.00014027,2]
[353751766,1740010247242,-500.0,0.00014027,2]
[353751768,1740010247251,-500.0,0.00014027,2]
[353751770,1740010247262,-500.0,0.00014027,2]
[353751772,1740010247272,-500.0,0.00014027,2]
[353751774,1740010247282,-500.0,0.00014027,2]
[353751776,1740010247292,-500.0,0.00014027,2]
[353751778,1740010247301,-500.0,0.00014027,2]
[353751779,1740010247311,-500.0,0.00014027,2]
[353751781,1740010247321,-500.0,0.00014027,2]
[353751782,1740010247332,-500.0,0.00014027,2]
[353751783,1740010247343,-500.0,0.00014027,2]
[353751784,1740010247353,-500.0,0.00014027,2]
[353751785,1740010247364,-500.0,0.00014027,2]
[353751786,1740010247374,-500.0,0.00014027,2]
[353751787,1740010247385,-500.0,0.00014027,2]
[353751788,1740010247396,-500.0,0.00014027,2]
[353751789,1740010247406,-500.0,0.00014027,2]
[353751790,1740010247417,-245.9810937,0.00014027,2]
[353751791,1740010247428,-500.0,0.00014027,2]
[353751792,1740010247438,-500.0,0.00014027,2]
[353751793,1740010247448,-789.43,0.00014027,2]
[353751794,1740010247459,-500.0,0.00014027,2]
[353751795,1740010247469,-12866.34,0.00014027,2]
[353751796,1740010247480,-4092.36,0.00014027,2]
[353751797,1740010247490,-500.0,0.00014027,2]
[353751798,1740010247500,-500.0,0.00014027,2]
[353751799,1740010247511,-500.0,0.00014027,2]
[353751800,1740010247522,-500.0,0.00014027,2]
[353751801,1740010247535,-191.39475227,0.00014027,2]
[353751802,1740010247545,-500.0,0.00014027,2]
[353751803,1740010247556,-671.53,0.00014027,2]
[353751804,1740010247567,-583.34,0.00014027,2]
[353751805,1740010247578,-500.0,0.00014027,2]
[353751806,1740010247588,-969.4,0.00014027,2]
[353751807,1740010247598,-500.0,0.00014027,2]
[353751808,1740010247608,-1702.23,0.00014027,2]
[353751809,1740010247619,-500.0,0.00014027,2]
[353751810,1740010247628,-1017.11,0.00014027,2]
[353751811,1740010247638,-1044.34,0.00014027,2]
[353751812,1740010247648,-500.0,0.00014027,2]
[353751813,1740010247658,-538.86,0.00014027,2]
[353751814,1740010247668,-500.0,0.00014027,2]
[353751815,1740010247678,-500.0,0.00014027,2]
[353751816,1740010247689,-500.0,0.00014027,2]
[353751817,1740010247699,-500.0,0.00014027,2]
[353751818,1740010247709,-513.35,0.00014027,2]
[353751819,1740010247719,-500.0,0.00014027,2]
[353751820,1740010247729,-500.0,0.00014027,2]
[353751821,1740010247738,-531.17,0.00014027,2]
[353751822,1740010247748,-500.0,0.00014027,2]
[353751823,1740010247759,-551.5,0.00014027,2]
[353751824,1740010247769,-500.0,0.00014027,2]
[353751825,1740010247780,-500.0,0.00014027,2]
[353751826,1740010247790,-1250.49,0.00014027,2]
[353751827,1740010247799,-500.0,0.00014027,2]
[353751828,1740010247809,-4536.63,0.00014027,2]
[353751829,1740010247819,-333.93,0.00014027,2]
[353751830,1740010247829,-500.0,0.00014027,2]
[353751831,1740010247840,-500.0,0.00014027,2]
[353751832,1740010247849,-1184.6,0.00014027,2]
[353751833,1740010247860,-1054.85,0.00014027,2]
[353751834,1740010247870,-500.0,0.00014027,2]
[353751835,1740010247880,-698.44,0.00014027,2]
[353751836,1740010247890,-692.95,0.00014027,2]
[353751837,1740010247901,-500.0,0.00014027,2]
[353751838,1740010247911,-545.33,0.00014027,2]
[353751839,1740010247921,-244.052745,0.00014091,2]
[353751840,1740010247931,-244.052745,0.00014091,2]
[353751841,1740010247942,-184.882004,0.00014091,2]
[353751842,1740010247952,-184.882004,0.00014091,2]
[353751843,1740010247962,-1000.0,0.000141,2]
[353751844,1740010247971,-500.0,0.00014109,2]
[353751845,1740010247980,-500.0,0.00014109,2]
[353751846,1740010247990,-500.0,0.00014109,2]
[353751847,1740010248001,-500.0,0.00014109,2]
[353751848,1740010248011,-500.0,0.00014109,2]
[353751849,1740010248021,-500.0,0.00014109,2]
[353751850,1740010248031,-500.0,0.00014109,2]
[353751851,1740010248041,-500.0,0.00014109,2]
[353751852,1740010248051,-500.0,0.00014109,2]
[353751853,1740010248062,-500.0,0.00014109,2]
[353751854,1740010248073,-500.0,0.00014109,2]
[353751855,1740010248084,-500.0,0.00014109,2]
[353751856,1740010248095,-626.62987979,0.00014109,2]
[353751857,1740010248105,-500.0,0.00014109,2]
[353751858,1740010248117,-500.0,0.00014109,2]
[353751859,1740010248127,-500.0,0.00014109,2]
[353751860,1740010248136,-450.5749384,0.00014109,2]
[353751861,1740010248146,-500.0,0.00014109,2]
[353751862,1740010248155,-500.0,0.00014109,2]
[353751863,1740010248165,-789.43,0.00014109,2]
[353751864,1740010248175,-12866.34,0.00014109,2]
[353751865,1740010248183,-4092.36,0.00014109,2]
[353751866,1740010248191,-500.0,0.00014109,2]
[353751867,1740010248201,-500.0,0.00014109,2]
[353751868,1740010248211,-500.0,0.00014109,2]
[353751869,1740010248220,-500.0,0.00014109,2]
[353751870,1740010248230,-500.0,0.00014109,2]
[353751871,1740010248241,-671.53,0.00014109,2]
[353751872,1740010248254,-583.34,0.00014109,2]
[353751873,1740010248264,-500.0,0.00014109,2]
[353751874,1740010248275,-969.4,0.00014109,2]
[353751875,1740010248286,-500.0,0.00014109,2]
[353751876,1740010248297,-1702.23,0.00014109,2]
[353751877,1740010248308,-500.0,0.00014109,2]
[353751878,1740010248318,-1017.11,0.00014109,2]
[353751879,1740010248329,-1044.34,0.00014109,2]
[353751880,1740010248340,-538.86,0.00014109,2]
[353751881,1740010248350,-500.0,0.00014109,2]
[353751882,1740010248360,-500.0,0.00014109,2]
[353751883,1740010248370,-500.0,0.00014109,2]
[353751884,1740010248381,-513.35,0.00014109,2]
[353751885,1740010248393,-500.0,0.00014109,2]
[353751886,1740010248406,-500.0,0.00014109,2]
[353751887,1740010248416,-531.17,0.00014109,2]
[353751888,1740010248427,-500.0,0.00014109,2]
[353751889,1740010248437,-551.5,0.00014109,2]
[353751890,1740010248447,-1250.49,0.00014109,2]
[353751891,1740010248456,-500.0,0.00014109,2]
[353751892,1740010248466,-4536.63,0.00014109,2]
[353751893,1740010248477,-500.0,0.00014109,2]
[353751894,1740010248487,-500.0,0.00014109,2]
[353751895,1740010248497,-1184.6,0.00014109,2]
[353751896,1740010248510,-1054.85,0.00014109,2]
[353751897,1740010248520,-698.44,0.00014109,2]
[353751898,1740010248532,-692.95,0.00014109,2]
[353751899,1740010248542,-500.0,0.00014109,2]
[353751900,1740010248550,-545.33,0.00014109,2]
[353751901,1740010248559,-7438.69753278,0.00014187,2]
[353751902,1740010248569,-1460.899831,0.00014191,2]
[353751903,1740010248579,-1460.899831,0.00014191,2]
[353751904,1740010248589,-500.0,0.00014191,2]
[353751905,1740010248599,-500.0,0.00014191,2]
[353751906,1740010248610,-500.0,0.00014191,2]
[353751907,1740010248620,-500.0,0.00014191,2]
[353751908,1740010248631,-500.0,0.00014191,2]
[353751909,1740010248642,-500.0,0.00014191,2]
[353751910,1740010248652,-500.0,0.00014191,2]
[353751911,1740010248663,-500.0,0.00014191,2]
[353751912,1740010248674,-500.0,0.00014191,2]
[353751913,1740010248684,-500.0,0.00014191,2]
[353751914,1740010248694,-500.0,0.00014191,2]
[353751915,1740010248704,-500.0,0.00014191,2]
[353751916,1740010248714,-500.0,0.00014191,2]
[353751917,1740010248724,-500.0,0.00014191,2]
[353751918,1740010248734,-500.0,0.00014191,2]
[353751919,1740010248744,-500.0,0.00014191,2]
[353751920,1740010248754,-789.43,0.00014191,2]
[353751921,1740010248764,-12866.34,0.00014191,2]
[353751922,1740010248775,-4092.36,0.00014191,2]
[353751923,1740010248785,-500.0,0.00014191,2]
[353751924,1740010248794,-500.0,0.00014191,2]
[353751925,1740010248804,-500.0,0.00014191,2]
[353751926,1740010248813,-500.0,0.00014191,2]
[353751927,1740010248823,-671.53,0.00014191,2]
[353751928,1740010248832,-583.34,0.00014191,2]
[353751929,1740010248841,-500.0,0.00014191,2]
[353751930,1740010248851,-969.4,0.00014191,2]
[353751931,1740010248860,-495.47,0.00014191,2]
[353751932,1740010248870,-1702.23,0.00014191,2]
[353751933,1740010248879,-500.0,0.00014191,2]
[353751934,1740010248889,-1017.11,0.00014191,2]
[353751935,1740010248899,-1044.34,0.00014191,2]
[353751936,1740010248909,-538.86,0.00014191,2]
[353751937,1740010248918,-500.0,0.00014191,2]
[353751938,1740010248928,-344.82,0.00014191,2]
[353751939,1740010248940,-500.0,0.00014191,2]
[353751940,1740010248950,-513.35,0.00014191,2]
[353751941,1740010248960,-500.0,0.00014191,2]
[353751942,1740010248970,-500.0,0.00014191,2]
[353751943,1740010248980,-531.17,0.00014191,2]
[353751944,1740010248991,-405.11,0.00014191,2]
[353751945,1740010249001,-551.5,0.00014191,2]
[353751946,1740010249011,-1250.49,0.00014191,2]
[353751947,1740010249021,-500.0,0.00014191,2]
[353751948,1740010249030,-4536.63,0.00014191,2]
[353751949,1740010249039,-500.0,0.00014191,2]
[353751950,1740010249049,-500.0,0.00014191,2]
[353751951,1740010249060,-1184.6,0.00014191,2]
[353751952,1740010249069,-1054.85,0.00014191,2]
[353751953,1740010249079,-698.44,0.00014191,2]
[353751954,1740010249088,-692.95,0.00014191,2]
[353751955,1740010249098,-500.0,0.00014191,2]
[353751956,1740010249107,-545.33,0.00014191,2]
[353751957,1740010249117,-151.0,0.000142,2]
[353751958,1740010249127,-1000.0,0.00014221,2]
[353751959,1740010249136,-1000.0,0.00014221,2]
[353751960,1740010249146,-400.69720656,0.00014235,2]
[353751961,1740010249155,-1007.8268122,0.00014247,2]
[353751962,1740010249165,-500.0,0.00014247,2]
[353751963,1740010249175,-184.882004,0.00014273,2]
[353751964,1740010249184,-184.882004,0.00014273,2]
[353751965,1740010249195,-500.0,0.00014273,2]
[353751966,1740010249204,-500.0,0.00014273,2]
[353751967,1740010249214,-500.0,0.00014273,2]
[353751968,1740010249224,-500.0,0.00014273,2]